fUSD/lending_fUSD_20240929
["ID","MTS","AMOUNT","RATE_DAILY","PERIOD"]
[339441204,1727615747090,-500.0,0.00021999,120]
[339441205,1727615747132,-500.0,0.00021999,120]
[339441206,1727615747176,-500.0,0.00021999,120]
[339441207,1727615747220,-500.0,0.00021999,120]
[339441208,1727615747266,-500.0,0.00021999,120]
[339441209,1727615747312,-500.0,0.00021999,120]
[339441210,1727615747354,-500.0,0.00021999,120]
[339441211,1727615747398,-500.0,0.00021999,120]
[339441212,1727615747442,-500.0,0.00021999,120]
[339441213,1727615747485,-500.0,0.00021999,120]
[339441214,1727615747527,-500.94483513,0.00021999,120]
[339441215,1727615747571,-500.0,0.00021999,120]
[339441216,1727615747613,-500.0,0.00021999,120]
[339441217,1727615747655,-500.0,0.00021999,120]
[339441218,1727615747698,-471.05,0.00021999,120]
[339441219,1727615747740,-500.0,0.00021999,120]
[339441220,1727615747782,-500.0,0.00021999,120]
[339441221,1727615747822,-500.0,0.00021999,120]
[339441222,1727615747863,-500.0,0.00021999,120]
[339441223,1727615747905,-507.57562457,0.00021999,120]
[339441224,1727615747949,-500.0,0.00021999,120]
[339441225,1727615747990,-500.0,0.00021999,120]
[339441226,1727615748032,-500.0,0.00021999,120]
[339441227,1727615748073,-500.0,0.00021999,120]
[339441228,1727615748112,-500.26231983,0.00021999,120]
[339441229,1727615748153,-500.0,0.00021999,120]
[339441230,1727615748194,-500.0,0.00021999,120]
[339441231,1727615748234,-379.5,0.00021999,120]
[339441232,1727615748273,-501.37316998,0.00021999,120]
[339441233,1727615748314,-500.0,0.00021999,120]
[339441234,1727615748355,-500.0,0.00021999,120]
[339441235,1727615748397,-500.0,0.00021999,120]
[339441236,1727615748440,-500.49380509,0.00021999,120]
[339441237,1727615748486,-500.0,0.00021999,120]
[339441238,1727615748531,-501.09202836,0.00021999,120]
[339441239,1727615748576,-500.0,0.00021999,120]
[339441240,1727615748622,-500.0,0.00021999,120]
[339441241,1727615748669,-500.0,0.00021999,120]
[339441242,1727615748717,-541.76664619,0.00021999,120]
[339441243,1727615748762,-500.0,0.00021999,120]
[339441244,1727615748806,-500.0,0.00021999,120]
[339441245,1727615748850,-500.0,0.00021999,120]
[339441246,1727615748896,-500.0,0.00021999,120]
[339441247,1727615748942,-500.0,0.00021999,120]
[339441248,1727615748989,-500.0,0.00021999,120]
[339441249,1727615749036,-500.0,0.00021999,120]
[339441250,1727615749083,-500.0,0.00021999,120]
[339441251,1727615749130,-500.0,0.00021999,120]
[339441252,1727615749176,-500.0,0.00021999,120]
[339441253,1727615749224,-500.0,0.00021999,120]
[339441254,1727615749270,-500.0,0.00021999,120]
[339441255,1727615749317,-500.0,0.00021999,120]
[339441256,1727615749362,-500.0,0.00021999,120]
[339441257,1727615749406,-500.0,0.00021999,120]
[339441258,1727615749453,-500.0,0.00021999,120]
[339441259,1727615749498,-500.0,0.00021999,120]
[339441260,1727615749543,-500.0,0.00021999,120]
[339441261,1727615749591,-500.0,0.00021999,120]
[339441262,1727615749637,-500.0,0.00021999,120]
[339441263,1727615749683,-500.0,0.00021999,120]
[339441264,1727615749727,-328.4,0.00021999,120]
[339441265,1727615749771,-500.0,0.00021999,120]
[339441266,1727615749815,-500.0,0.00021999,120]
[339441267,1727615749859,-500.0,0.00021999,120]
[339441268,1727615749904,-500.0,0.00021999,120]
[339441269,1727615749949,-500.0,0.00021999,120]
[339441270,1727615749995,-500.0,0.00021999,120]
[339441271,1727615750040,-500.0,0.00021999,120]
[339441272,1727615750083,-500.0,0.00021999,120]
[339441273,1727615750127,-500.0,0.00021999,120]
[339441274,1727615750171,-500.0,0.00021999,120]
[339441275,1727615750214,-500.0,0.00021999,120]
[339441276,1727615750257,-500.0,0.00021999,120]
[339441277,1727615750300,-500.0,0.00021999,120]
[339441278,1727615750342,-500.0,0.00021999,120]
[339441279,1727615750384,-500.0,0.00021999,120]
[339441280,1727615750427,-500.0,0.00021999,120]
[339441281,1727615750470,-500.0,0.00021999,120]
[339441282,1727615750514,-500.0,0.00021999,120]
[339441283,1727615750559,-500.0,0.00021999,120]
[339441284,1727615750605,-500.0,0.00021999,120]
[339441285,1727615750649,-500.0,0.00021999,120]
[339441286,1727615750694,-500.0,0.00021999,120]
[339441287,1727615750738,-500.0,0.00021999,120]
[339441288,1727615750936,-500.0,0.00021999,120]
[339441289,1727615750984,-500.0,0.00021999,120]
[339441290,1727615751031,-500.0,0.00021999,120]
[339441291,1727615751078,-500.0,0.00021999,120]
[339441292,1727615751124,-500.0,0.00021999,120]
[339441293,1727615751171,-500.0,0.00021999,120]
[339441294,1727615751216,-500.0,0.00021999,120]
[339441295,1727615751260,-314.95,0.00021999,120]
[339441296,1727615751307,-500.0,0.00021999,120]
[339441297,1727615751353,-500.0,0.00021999,120]
[339441298,1727615751398,-500.0,0.00021999,120]
[339441299,1727615751443,-500.0,0.00021999,120]
[339441300,1727615751488,-500.0,0.00021999,120]
[339441301,1727615751535,-500.0,0.00021999,120]
[339441302,1727615751582,-500.0,0.00021999,120]
[339441303,1727615751630,-376.3,0.00021999,120]
[339441304,1727615751681,-500.0,0.00021999,120]
[339441305,1727615751725,-500.0,0.00021999,120]
[339441306,1727615751771,-500.0,0.00021999,120]
[339441307,1727615751816,-500.0,0.00021999,120]
[339441308,1727615751863,-500.0,0.00021999,120]
[339441309,1727615751907,-500.0,0.00021999,120]
[339441310,1727615751953,-500.0,0.00021999,120]
[339441311,1727615752001,-500.0,0.00021999,120]
[339441312,1727615752051,-500.0,0.00021999,120]
[339441313,1727615752099,-500.0,0.00021999,120]
[339441314,1727615752148,-349.9,0.00021999,120]
[339441315,1727615752195,-500.0,0.00021999,120]
[339441316,1727615752242,-500.0,0.00021999,120]
[339441317,1727615752290,-500.0,0.00021999,120]
[339441318,1727615752338,-500.0,0.00021999,120]
[339441319,1727615752386,-500.0,0.00021999,120]
[339441320,1727615752433,-500.0,0.00021999,120]
[339441321,1727615752480,-281.92481355,0.00021999,120]
[339441322,1727615752528,-500.0,0.00021999,120]
[339441323,1727615752577,-500.0,0.00021999,120]
[339441324,1727615752624,-500.0,0.00021999,120]
[339441325,1727615752673,-500.0,0.00021999,120]
[339441326,1727615752719,-500.0,0.00021999,120]
[339441327,1727615752765,-500.0,0.00021999,120]
[339441328,1727615752809,-235.5675282,0.00021999,120]
[339441329,1727615752854,-500.0,0.00021999,120]
[339441330,1727615752898,-500.0,0.00021999,120]
[339441331,1727615752943,-500.0,0.00021999,120]
[339441332,1727615752988,-500.0,0.00021999,120]
[339441333,1727615753034,-500.0,0.00021999,120]
[339441334,1727615753081,-500.0,0.00021999,120]
[339441335,1727615753128,-500.0,0.00021999,120]
[339441336,1727615753175,-280.85,0.00021999,120]
[339441337,1727615753221,-500.0,0.00021999,120]
[339441338,1727615753266,-500.0,0.00021999,120]
[339441339,1727615753312,-500.0,0.00021999,120]
[339441340,1727615753358,-500.0,0.00021999,120]
[339441341,1727615753403,-500.0,0.00021999,120]
[339441342,1727615753448,-500.0,0.00021999,120]
[339441343,1727615753494,-500.0,0.00021999,120]
[339441344,1727615753541,-500.0,0.00021999,120]
[339441345,1727615753587,-500.0,0.00021999,120]
[339441346,1727615753631,-500.0,0.00021999,120]
[339441347,1727615753676,-500.0,0.00021999,120]
[339441348,1727615753721,-500.0,0.00021999,120]
[339441349,1727615753771,-500.0,0.00021999,120]
[339441350,1727615753868,-500.0,0.00021999,120]
[339441351,1727615753984,-500.0,0.00021999,120]
[339441352,1727615754060,-500.0,0.00021999,120]
[339441353,1727615754106,-500.0,0.00021999,120]
[339441354,1727615754152,-500.0,0.00021999,120]
[339441355,1727615754199,-500.0,0.00021999,120]
[339441356,1727615754243,-500.0,0.00021999,120]
[339441357,1727615754286,-500.0,0.00021999,120]
[339441358,1727615754330,-500.0,0.00021999,120]
[339441359,1727615754376,-500.0,0.00021999,120]
[339441360,1727615754421,-500.0,0.00021999,120]
[339441361,1727615754467,-245.15,0.00021999,120]
[339441362,1727615754512,-500.0,0.00021999,120]
[339441363,1727615754557,-500.0,0.00021999,120]
[339441364,1727615754609,-500.0,0.00021999,120]
[339441365,1727615754655,-333.0,0.00021999,120]
[339441366,1727615754701,-500.0,0.00021999,120]
[339441367,1727615754746,-500.0,0.00021999,120]
[339441368,1727615754793,-500.0,0.00021999,120]
[339441369,1727615754837,-500.0,0.00021999,120]
[339441370,1727615754882,-500.0,0.00021999,120]
[339441371,1727615754927,-500.0,0.00021999,120]
[339441372,1727615754973,-500.0,0.00021999,120]
[339441373,1727615755017,-500.0,0.00021999,120]
[339441374,1727615755062,-500.0,0.00021999,120]
[339441375,1727615755106,-500.0,0.00021999,120]
[339441376,1727615755152,-500.0,0.00021999,120]
[339441377,1727615755195,-374.2,0.00021999,120]
[339441378,1727615755240,-500.0,0.00021999,120]
[339441379,1727615755285,-2110.0,0.00022,30]
[339441380,1727615755330,-1589.40308082,0.00022,30]
[339441381,1727615755374,-2110.0,0.000225,30]
[339441382,1727615755421,-150.0,0.00022539,120]
[339441383,1727615755468,-150.0,0.00022602,120]
[339441384,1727615755515,-150.0,0.00022609,120]
[339441385,1727615755561,-150.0,0.00022765,120]
[339441386,1727615755613,-150.0,0.00022801,120]
[339441387,1727615755658,-150.0,0.00022987,120]
[339441388,1727615755702,-2110.0,0.00023,30]
[339441389,1727615755747,-905.0,0.00023014,60]
[339441390,1727615755792,-150.0,0.00023046,120]
[339441391,1727615755835,-1111.0,0.00023233,120]
[339441392,1727615756034,-150.0,0.00023393,120]
[339441393,1727615756081,-2110.0,0.000235,30]
[339441394,1727615756127,-150.0,0.00023829,120]
[339441395,1727615756172,-1704.79746736,0.000239,120]
[339441396,1727615756218,-2416.51492428,0.00024,30]
[339441397,1727615756264,-2000.0,0.00024,120]
[339441398,1727615756313,-1000.0,0.00024,120]
[339441399,1727615756359,-2110.0,0.00024,30]
[339441400,1727615756403,-900.0,0.00024,30]
[339441401,1727615756446,-6443.73,0.00024,30]
[339441402,1727615756490,-1200.0,0.00024,60]
[339441403,1727615756535,-150.0,0.0002424,120]
[339441404,1727615756582,-150.0,0.00024332,120]
[339441405,1727615756627,-150.0,0.00024369,120]
[339441406,1727615756672,-2110.0,0.000245,30]
[339441407,1727615756717,-150.0,0.00024836,120]
[339441408,1727615756760,-1000.0,0.00024987,31]
[339441409,1727615756803,-200.0,0.00025,30]
[339441410,1727615756846,-1010.09694625,0.00025,60]
[339441411,1727615756890,-2339.24714181,0.00025,30]
[339441412,1727615756932,-1500.0,0.00025,120]
[339441413,1727615756975,-276.42201798,0.00025,30]
[339441414,1727615757018,-2100.0,0.00025,30]
[339441415,1727615757058,-167.17683816,0.00025,120]
[339441416,1727615757099,-633.26746037,0.00025,120]
[339441417,1727615757141,-200.0,0.00025,120]
[339441418,1727615757185,-2110.0,0.00025,30]
[339441419,1727615757227,-251.66612712,0.00025,60]
[339441420,1727615757272,-2702.0,0.00025,120]
[339441421,1727615757318,-3000.0,0.00025,120]
[339441422,1727615757364,-2325.58358878,0.00025,60]
[339441423,1727615757407,-2878.56601123,0.0002509,120]
[339441424,1727615757452,-150.0,0.00025401,120]
[339441425,1727615757496,-150.0,0.00025422,120]
[339441426,1727615757540,-2110.0,0.000255,30]
[339441427,1727615757586,-150.0,0.00025978,120]
[339441428,1727615757631,-500.0,0.00025998,120]
[339441429,1727615757678,-718.97602782,0.00026,30]
[339441430,1727615757724,-1000.0,0.00026,120]
[339441431,1727615757769,-2110.0,0.00026,30]
[339441432,1727615757814,-2110.0,0.000265,30]
[339441433,1727615757859,-150.0,0.00026666,120]
[339441434,1727615757905,-645.86,0.00027,120]
[339441435,1727615757948,-1007.97803663,0.00027,120]
[339441436,1727615757992,-668.83093674,0.00027,120]
[339441437,1727615758035,-504.12042552,0.00027,120]
[339441438,1727615758079,-2000.0,0.00027,120]
[339441439,1727615758124,-230.13304814,0.00027,120]
[339441440,1727615758170,-2110.0,0.00027,30]
[339441441,1727615758216,-245.33362,0.00027,120]
[339441442,1727615758262,-150.0,0.00027338,120]
[339441443,1727615758306,-2085.13546075,0.0002736,120]
[339441444,1727615758351,-200.0,0.00027397,60]
[339441445,1727615758397,-1000.0,0.00027397,32]
[339441446,1727615758445,-1000.0,0.00027397,32]
[339441447,1727615758493,-150.0,0.00027413,120]
[339441448,1727615758540,-1704.16,0.000275,30]
[339441449,1727615758586,-245.33362,0.000275,120]
[339441450,1727615758632,-150.0,0.0002775,120]
[339441451,1727615758679,-150.0,0.00027892,120]
[339441452,1727615758724,-1000.0,0.00028,120]
[339441453,1727615758769,-152.0,0.00028,120]
[339441454,1727615758811,-1200.0,0.00028,120]
[339441455,1727615758855,-245.33362,0.00028,120]
[339441456,1727615758899,-6039.16,0.00028,30]
[339441457,1727615758943,-900.0,0.00028,30]
[339441458,1727615758989,-150.0,0.00028211,120]
[339441459,1727615759035,-1410.16129355,0.00028297,120]
[339441460,1727615759084,-600.0,0.00028382,31]
[339441461,1727615759130,-150.0,0.00028442,120]
[339441462,1727615759178,-212.62186403,0.00028493,30]
[339441463,1727615759226,-245.33362,0.000285,120]
[339441464,1727615759273,-150.0,0.00028793,120]
[339441465,1727615759321,-150.0,0.00028794,120]
[339441466,1727615759368,-493.47336273,0.00028977,35]
[339441467,1727615759415,-1526.71380008,0.00029,30]
[339441468,1727615759461,-9251.78256599,0.00029,120]
[339441469,1727615759506,-900.0,0.00029,30]
[339441470,1727615759553,-224.77430351,0.00029,120]
[339441471,1727615759602,-245.33362,0.00029,120]
[339441472,1727615759649,-150.0,0.00029038,120]
[339441473,1727615759697,-150.0,0.00029113,120]
[339441474,1727615759744,-150.0,0.00029213,120]
[339441475,1727615759790,-150.0,0.00029256,120]
[339441476,1727615759836,-245.33362,0.000295,120]
[339441477,1727615759880,-800.0,0.00029616,120]
[339441478,1727615759926,-150.0,0.00029625,120]
[339441479,1727615759981,-300.12577228,0.00029639,120]
[339441480,1727615760031,-150.0,0.00029843,120]
[339441481,1727615760080,-150.0,0.00029847,120]
[339441482,1727615760129,-411.0,0.00029886,30]
[339441483,1727615760186,-160.52150382,0.0003,120]
[339441484,1727615760235,-370.94088,0.0003,120]
[339441485,1727615760283,-458.31937051,0.0003,120]
[339441486,1727615760332,-1536.65958316,0.0003,120]
[339441487,1727615760380,-1518.43008237,0.0003,120]
[339441488,1727615760427,-620.0,0.0003,30]
[339441489,1727615760475,-1955.85716918,0.0003,120]
[339441490,1727615760522,-2016.63137427,0.0003,120]
[339441491,1727615760572,-200.0,0.0003,120]
[339441492,1727615760620,-1000.0,0.0003,120]
[339441493,1727615760667,-1418.1629707,0.0003,120]
[339441494,1727615760714,-151.0,0.0003,120]
[339441495,1727615760761,-151.0,0.0003,120]
[339441496,1727615760957,-94492.35894565,0.0003,30]
[339441497,1727615761005,-450.0,0.0003,90]
[339441499,1727615761053,-2439.26545051,0.0003,120]
[339441500,1727615761101,-473.6,0.0003,120]
[339441501,1727615761149,-2286.71005852,0.0003,120]
[339441502,1727615761196,-1093.68861112,0.0003,30]
[339441503,1727615761244,-186.78,0.0003,90]
[339441504,1727615761292,-3318.99506654,0.0003,120]
[339441505,1727615761338,-5000.0,0.0003,60]
[339441506,1727615761384,-5000.0,0.0003,60]
[339441507,1727615761432,-245.33362,0.0003,120]
[339441508,1727615761479,-5222.5272533,0.0003,120]
[339441509,1727615761525,-8867.37910865,0.0003,30]
[339441510,1727615761576,-1800.0,0.0003,31]
[339441511,1727615761621,-1000.0,0.0003,120]
[339441512,1727615761668,-4187.51895745,0.0003,30]
[339441513,1727615761712,-150.0,0.00030056,120]
[339441514,1727615761758,-150.0,0.00030056,120]
[339441515,1727615761801,-200.0,0.00030137,60]
[339441516,1727615761845,-150.0,0.00030373,120]
[339441517,1727615761890,-10491.0,0.000305,60]
[339441518,1727615761937,-548.0,0.00030613,30]
[339441519,1727615761985,-250.0,0.000308,30]
[339441520,1727615762032,-2260.66055408,0.000309,90]
[339441521,1727615762084,-151.0,0.00030904,120]
[339441522,1727615762135,-1000.0,0.00031,120]
[339441523,1727615762186,-213.34577618,0.00031,120]
[339441524,1727615762234,-40000.0,0.00031,30]
[339441525,1727615762287,-4656.34487735,0.00031,120]
[339441526,1727615762337,-5313.69415865,0.00031,120]
[339441527,1727615762386,-1800.0,0.00031,32]
[339441528,1727615762438,-150.0,0.00031028,120]
[339441529,1727615762487,-269.1960012,0.00031123,90]
[339441530,1727615762535,-2421.49999669,0.000315,30]
[339441532,1727615762584,-174.06,0.00031644,91]
[339441533,1727615762632,-151.0,0.00031808,120]
[339441534,1727615762679,-1000.0,0.00032,120]
[339441535,1727615762724,-1207.64297478,0.00032,120]
[339441536,1727615762770,-1800.0,0.00032,33]
[339441537,1727615762816,-4030.09,0.00032,32]
[339441538,1727615762864,-1200.0,0.00032,120]
[339441539,1727615762910,-1255.42076774,0.00032,30]
[339441540,1727615762957,-4000.0,0.00032,120]
[339441541,1727615763006,-4000.0,0.00032423,31]
[339441542,1727615763058,-151.0,0.00032712,120]
[339441543,1727615763109,-2648.29,0.00032876,120]
[339441544,1727615763159,-2648.29,0.00032876,120]
[339441545,1727615763213,-2648.29,0.00032876,120]
[339441546,1727615763263,-2648.29,0.00032876,120]
[339441547,1727615763316,-2648.29,0.00032876,120]
[339441548,1727615763367,-2648.29,0.00032876,120]
[339441549,1727615763417,-2648.29,0.00032876,120]
[339441550,1727615763466,-2648.29,0.00032876,120]
[339441551,1727615763515,-2648.29,0.00032876,120]
[339441552,1727615763565,-2648.29,0.00032876,120]
[339441553,1727615763618,-2648.29,0.00032876,120]
[339441554,1727615763669,-2648.29,0.00032876,120]
[339441555,1727615763717,-2648.29,0.00032876,120]
[339441556,1727615763766,-2648.29,0.00032876,120]
[339441557,1727615763814,-2648.29,0.00032876,120]
[339441558,1727615763863,-2648.29,0.00032876,120]
[339441559,1727615763911,-2648.29,0.00032876,120]
[339441560,1727615763959,-2648.29,0.00032876,120]
[339441561,1727615764008,-2648.29,0.00032876,120]
[339441562,1727615764058,-2648.29,0.00032876,120]
[339441563,1727615764108,-2648.29,0.00032876,120]
[339441564,1727615764159,-2648.29,0.00032876,120]
[339441565,1727615764209,-2648.29,0.00032876,120]
[339441566,1727615764260,-2648.48663436,0.00032876,120]
[339441567,1727615764310,-200.0,0.00032877,60]
[339441568,1727615764360,-1000.0,0.00032877,34]
[339441569,1727615764411,-1000.0,0.00032877,34]
[339441570,1727615764461,-443.43,0.00032877,60]
[339441571,1727615764511,-26171.49884072,0.000329,30]
[339441572,1727615764560,-2905.95131287,0.00033,120]
[339441573,1727615764612,-161.1017082,0.00033,120]
[339441574,1727615764663,-150.0,0.00033,120]
[339441575,1727615764712,-1800.0,0.00033,34]
[339441576,1727615764762,-1000.0,0.00033,120]
[339441577,1727615764813,-577.1617735,0.00033,90]
[339441578,1727615764865,-5000.0,0.00033,120]
[339441579,1727615764914,-6500.12,0.00033151,120]
[339441580,1727615764961,-151.0,0.00033616,120]
[339441581,1727615765010,-768.0,0.00033674,30]
[339441582,1727615765060,-1800.0,0.00034,35]
[339441583,1727615765109,-1805.35686531,0.00034,120]
[339441584,1727615765157,-2614.8026182,0.00034,120]
[339441585,1727615765205,-2537.0,0.00034,120]
[339441586,1727615765253,-1000.0,0.00034,120]
[339441587,1727615765300,-292.14393922,0.00034,120]
[339441588,1727615765349,-3000.0,0.00034,120]
[339441589,1727615765397,-5076.50899692,0.00034,120]
[339441590,1727615765446,-31338.02050275,0.00034,30]
[339441591,1727615765496,-1061.36934486,0.00034,30]
[339441592,1727615765546,-5833.3,0.00034449,45]
[339441593,1727615765597,-6100.0,0.000345,120]
[339441594,1727615765646,-151.0,0.00034521,120]
[339441595,1727615765695,-1000.0,0.000348,120]
[339441596,1727615765743,-1000.0,0.000348,120]
[339441597,1727615765791,-12693.235017,0.000348,30]
[339441598,1727615765841,-2000.0,0.00034843,31]
[339441599,1727615765888,-1512.37818541,0.00035,100]
[339441600,1727615765933,-1303.29131352,0.00035,30]
[339441601,1727615765980,-1810.1251205,0.00035,120]
[339441602,1727615766173,-150.0,0.00035,30]
[339441603,1727615766220,-967.25670283,0.00035,120]
[339441604,1727615766265,-9475.0,0.00035,120]
[339441605,1727615766311,-5000.0,0.00035,120]
[339441606,1727615766359,-1262.796689,0.00035,31]
[339441607,1727615766407,-3225.76981187,0.00035,60]
[339441608,1727615766454,-5000.0,0.00035,40]
[339441609,1727615766503,-24350.60739541,0.00035,60]
[339441610,1727615766551,-413.0,0.00035,120]
[339441611,1727615766597,-16924.313356,0.00035,30]
[339441612,1727615766647,-156.160171,0.00035,30]
[339441613,1727615766695,-156.160171,0.00035,30]
[339441614,1727615766742,-5000.0,0.00035,120]
[339441615,1727615766788,-200.0,0.00035,120]
[339441616,1727615766839,-76868.46798503,0.00035,120]
[339441617,1727615766887,-1800.0,0.00035,36]
[339441618,1727615766933,-5000.0,0.00035,120]
[339441619,1727615766981,-151.0,0.00035014,120]
[339441620,1727615767029,-6977.27763392,0.000351,30]
[339441621,1727615767077,-395.0029311,0.000352,120]
[339441622,1727615767126,-151.0,0.00035425,120]
[339441623,1727615767175,-5000.0,0.000355,120]
[339441624,1727615767224,-21155.391695,0.000355,30]
[339441625,1727615767271,-31338.02050275,0.000355,30]
[339441626,1727615767320,-25386.470034,0.000356,30]
[339441627,1727615767369,-200.0,0.00035616,60]
[339441628,1727615767417,-25386.470034,0.000357,30]
[339441629,1727615767464,-490.085,0.00035747,43]
[339441630,1727615767512,-5000.0,0.0003575,120]
[339441631,1727615767560,-32585.56985,0.000358,60]
[339441632,1727615767611,-36809.52368,0.000358,60]
[339441633,1727615767658,-29617.548373,0.000358,30]
[339441634,1727615767705,-25386.470034,0.0003582,30]
[339441635,1727615767752,-40000.0,0.00036,40]
[339441636,1727615767798,-1800.0,0.00036,37]
[339441637,1727615767847,-3000.0,0.00036,120]
[339441638,1727615767893,-3000.0,0.00036,120]
[339441639,1727615767939,-1000.0,0.00036,120]
[339441640,1727615767986,-3000.0,0.00036,120]
[339441641,1727615768034,-1200.0,0.00036,120]
[339441642,1727615768080,-169000.0,0.00036,30]
[339441643,1727615768128,-2182.20513601,0.00036,120]
[339441644,1727615768175,-5000.0,0.0003625,120]
[339441645,1727615768222,-151.0,0.00036329,120]
[339441646,1727615768270,-15977.86,0.000366,120]
[339441647,1727615768314,-5060.0,0.0003675,120]
[339441648,1727615768360,-32598.586,0.000368,60]
[339441649,1727615768407,-35582.34976006,0.000368,60]
[339441650,1727615768452,-411.0,0.00036986,60]
[339441651,1727615768498,-1800.0,0.00037,38]
[339441652,1727615768543,-1000.0,0.00037,120]
[339441653,1727615768591,-106296.14547336,0.00037,90]
[339441654,1727615768638,-2000000.0,0.00037,30]
[339441655,1727615768686,-412005.11875848,0.00037,120]
[339441656,1727615791403,661.7,8.942e-05,2]
[339441786,1727616475548,662.79,8.359e-05,2]
[339441797,1727616631482,-849.97896667,0.0001,2]
[339441798,1727616631545,-200.02103333,0.0001,2]
[339441799,1727616631554,-250.0,0.00010244,2]
[339441800,1727616631564,-319.0,0.00010323,2]
[339441801,1727616631573,-1000.0,0.00010392,2]
[339441802,1727616631582,-169.36,0.0001056,2]
[339441803,1727616631592,-662.79,0.00010622,2]
[339441804,1727616631601,-294.051,0.0001078,2]
[339441805,1727616631612,-2118.8868,0.000109,2]
[339441806,1727616631621,-191.13,0.00010959,2]
[339441807,1727616631630,-150.0,0.00010972,2]
[339441808,1727616631640,-500.0,0.00010973,2]
[339441809,1727616631649,-300.0,0.00010998,2]
[339441810,1727616631659,-70.47049257,0.00010998,2]
[339441811,1727616631670,-79.52950743,0.00010998,2]
[339441812,1727616631681,-184.42549302,0.00010999,2]
[339441813,1727616631690,-1070.50119497,0.00010999,3]
[339441814,1727616631700,-500.0,0.00010999,2]
[339441815,1727616631710,-500.0,0.00010999,2]
[339441816,1727616631719,-27.21013279,0.00010999,2]
[339441817,1727616631731,-472.78986721,0.00010999,2]
[339441818,1727616631740,-500.0,0.00010999,2]
[339441819,1727616631749,-500.0,0.00010999,2]
[339441820,1727616631758,-341.59428465,0.00010999,2]
[339441821,1727616631768,-500.0,0.00010999,2]
[339441822,1727616631777,-500.0,0.00010999,2]
[339441823,1727616631787,-500.0,0.00010999,2]
[339441824,1727616631796,-500.0,0.00010999,2]
[339441825,1727616631806,-434.05899699,0.00010999,2]
[339441826,1727616631815,-478.85769956,0.00010999,2]
[339441827,1727616631825,-235.65727592,0.00010999,2]
[339441828,1727616631834,-258.14966986,0.00010999,2]
[339441829,1727616631843,-957.87471161,0.00011,2]
[339441830,1727616631855,-8606.23695535,0.00011,2]
[339441831,1727616631869,-5409.42459508,0.00011,2]
[339441832,1727616631880,-298.62086198,0.00011,2]
[339441833,1727616631891,-495.72833055,0.00011,2]
[339441834,1727616631903,-5047.31533152,0.00011,2]
[339441835,1727616631915,-328.4348001,0.00011,2]
[339441836,1727616631926,-1160.73125044,0.00011,2]
[339441837,1727616631941,-34486.2523855,0.00011,2]
[339441838,1727616631950,-7666.74118732,0.00011,2]
[339441839,1727616631963,-170124.54923904,0.00011,2]
[339441840,1727616631984,-3605.61418377,0.00011,2]
[339441841,1727616631997,-328.01300429,0.00011,2]
[339441842,1727616632009,-8680.88328834,0.00011,2]
[339441843,1727616632020,-360.246502,0.00011,2]
[339441844,1727616632031,-4670.58140367,0.00011,2]